bitfinex-derivatives/quotes_ETHF0:USTF0_20250212
["timestamp","ask_amount","ask_price","bid_price","bid_amount"]
[1739393779480,1.19220926,2678.5,2678.4,0.74667]
[1739393779682,0.00560926,2678.5,2678.4,0.74667]
[1739393780076,0.00560926,2678.5,2678.4,3.95447]
[1739393780275,1.705,2679.1,2678.8,0.74656]
[1739393780482,2.45149,2679.1,2678.8,0.74656]
[1739393780684,0.74649,2679.1,2678.8,0.74656]
[1739393780884,1.705,2679.2,2678.5,1.1483]
[1739393781175,0.74655,2678.9,2678.6,0.74662]
[1739393781378,7.04315394,2679.0,2678.6,0.00560926]
[1739393781579,0.74659,2678.7,2678.6,0.00560926]
[1739393782580,1.1384,2678.9,2678.6,0.00560926]
[1739393782771,4.9128,2679.0,2678.6,0.00560926]
[1739393782971,0.74654,2678.9,2678.7,0.74657]
[1739393784088,0.74657,2678.8,2678.6,0.75220926]
[1739393784283,0.74654,2678.9,2678.7,0.74657]
[1739393784489,6.85936394,2679.3,2678.6,3.21340926]
[1739393784490,4.3657,2679.3,2678.6,3.21340926]
[1739393784690,6.81713,2679.3,2678.9,3.2078]
[1739393785390,6.0707,2679.3,2678.9,3.2078]
[1739393785591,6.0707,2679.3,2679.1,0.74646]
[1739393785788,6.81713,2679.3,2678.9,3.2078]
[1739393785989,6.0707,2679.3,2678.9,3.2078]
[1739393786190,0.74645,2679.2,2679.0,0.74648]
[1739393786387,6.0707,2679.3,2679.0,0.74651]
[1739393786593,0.74646,2679.2,2679.0,0.74651]
[1739393786793,6.0707,2679.3,2678.9,3.2078]
[1739393786989,0.74645,2679.2,2678.9,3.2078]
[1739393787195,0.74645,2679.2,2679.0,0.74649]
[1739393787395,6.0707,2679.3,2678.9,3.2078]
[1739393787595,0.74651,2679.0,2678.9,3.2078]
[1739393788188,0.74656,2678.8,2678.7,0.74657]
[1739393788489,0.74656,2678.8,2678.7,0.74659]
[1739393788790,1.86613,2679.2,2678.7,0.74658]
[1739393788995,0.74659,2678.7,2678.6,0.00560926]
[1739393789696,0.74676,2678.1,2678.0,0.74677]
[1739393790085,3.2078,2678.4,2677.6,3.8092]
[1739393790290,1.705,2678.3,2677.6,3.8092]
[1739393790493,1.705,2678.3,2677.9,0.7468]
[1739393790691,1.705,2678.3,2677.6,4.4025]
[1739393790896,0.7468,2678.0,2677.9,0.74681]
[1739393791101,0.7468,2678.0,2677.8,0.00559869]
[1739393791299,3.83535394,2678.1,2677.8,0.00559869]
[1739393791591,0.74681,2677.9,2677.8,0.00559869]
[1739393792197,1.3475,2678.0,2677.8,0.00559869]
[1739393792688,1.34749,2678.0,2677.8,0.75243869]
[1739393792895,0.6007,2678.0,2677.8,0.75242869]
[1739393793095,0.6007,2678.0,2677.8,0.75243869]
[1739393793494,1.30767,2678.1,2677.8,0.75243869]
[1739393793888,1.30767,2678.1,2677.9,0.74681]
[1739393794091,2.3057,2678.2,2677.8,0.00559869]
[1739393794295,3.05245,2678.2,2677.9,0.7468]
[1739393794595,3.05245,2678.2,2677.8,0.00559869]
[1739393794596,2.3057,2678.2,2677.8,0.00559869]
[1739393794801,0.74681,2678.0,2677.8,0.00559869]
[1739393794992,0.74681,2677.9,2677.8,0.00559869]
[1739393797390,2.45181,2677.9,2677.8,0.00559869]
[1739393798199,1.705,2677.9,2677.8,0.00559869]
[1739393798499,2.45181,2677.9,2677.8,0.75243869]
[1739393799096,0.74679,2678.0,2677.9,0.74681]
[1739393799398,0.74668,2678.4,2677.9,3.2078]
[1739393799598,3.2078,2678.7,2678.3,0.74669]
[1739393799801,4.9128,2678.7,2678.0,0.5452]
[1739393800097,3.2078,2678.7,2678.4,0.74667]
[1739393800502,0.74665,2678.5,2678.3,0.74669]
[1739393800696,0.74667,2678.4,2678.3,0.74669]
[1739393800895,3.2078,2678.7,2678.0,0.5452]
[1739393801204,7.04315394,2678.7,2678.0,0.5452]
[1739393801504,8.90970394,2678.7,2678.0,0.5452]
[1739393801702,0.74673,2678.2,2678.0,0.74677]
[1739393801999,0.74673,2678.2,2677.9,3.7868]
[1739393802000,8.90970394,2678.7,2677.9,3.7868]
[1739393802199,0.74676,2678.2,2677.9,4.53359]
[1739393802587,0.74676,2678.1,2677.9,4.53359]
[1739393802995,4.9128,2678.4,2677.9,3.2078]
[1739393803191,0.74679,2678.0,2677.9,3.2078]
[1739393803394,0.5592,2678.3,2678.1,0.74675]
[1739393803395,1.30591,2678.3,2678.1,0.74675]
[1739393803599,0.74671,2678.3,2678.1,0.74674]
[1739393803800,0.74673,2678.2,2678.1,0.74674]
[1739393803996,0.74673,2678.2,2677.9,3.2078]
[1739393804396,0.74673,2678.2,2678.0,0.74677]
[1739393804597,0.74673,2678.2,2678.0,0.74676]
[1739393804797,1.705,2678.4,2677.9,3.2078]
[1739393805003,0.74671,2678.3,2678.1,0.74675]
[1739393805302,0.74669,2678.4,2678.2,0.74672]
[1739393805495,0.74668,2678.4,2678.2,0.74671]
[1739393806504,0.74668,2678.4,2677.9,3.2078]
[1739393806505,0.74667,2678.5,2678.3,0.74669]
[1739393806704,1.705,2678.6,2678.3,3.2078]
[1739393807003,0.00557762,2678.9,2678.8,0.74656]
[1739393809106,0.74659,2678.7,2678.6,3.2078]
[1739393809303,0.00557762,2678.9,2678.4,1.7181]
[1739393809809,0.7466,2678.7,2678.5,0.74663]
[1739393810008,0.74658,2678.8,2678.6,0.74661]
[1739393810204,0.00557762,2678.9,2678.4,1.7181]
[1739393810504,0.00557762,2678.9,2678.6,3.2078]
[1739393810711,0.75211762,2678.9,2678.7,0.74659]
[1739393811302,0.74656,2678.8,2678.7,0.74658]
[1739393811502,0.74656,2678.8,2678.4,1.7181]
[1739393811503,0.00557762,2678.9,2678.4,1.7181]
[1739393811709,0.7466,2678.7,2678.5,0.74665]
[1739393811911,0.74662,2678.6,2678.5,0.74665]
[1739393812111,0.74661,2678.7,2678.5,0.74665]
[1739393812309,0.74662,2678.6,2678.5,0.74665]
[1739393812502,0.00557762,2678.9,2678.5,0.74665]
[1739393812703,0.74662,2678.6,2678.5,0.74665]
[1739393812903,0.00557762,2678.9,2678.4,1.7181]
[1739393813104,0.74665,2678.5,2678.4,0.5568]
[1739393813299,1.86646,2678.8,2678.1,0.5523]
[1739393813613,0.74668,2678.4,2678.3,0.74669]
[1739393813811,0.74667,2678.5,2678.3,0.74669]
[1739393814206,5.70183394,2678.7,2678.1,0.5523]
[1739393814413,0.74671,2678.3,2678.2,0.74672]
[1739393814904,0.74669,2678.4,2678.2,0.74672]
[1739393815109,3.2078,2678.8,2678.1,0.5523]
[1739393815110,2.45066,2678.5,2678.1,0.5523]
[1739393815309,2.45066,2678.5,2678.3,0.74669]
[1739393816011,1.704,2678.5,2678.3,0.74669]
[1739393816207,0.74667,2678.4,2678.3,0.74669]
[1739393816407,0.74667,2678.4,2678.1,0.5523]
[1739393816607,0.74667,2678.4,2678.3,0.7467]
[1739393817211,2.45066,2678.5,2678.4,0.74667]
[1739393817408,2.45066,2678.5,2678.1,0.5523]
[1739393817613,0.74667,2678.4,2678.3,0.74668]
[1739393817807,1.704,2678.5,2678.3,0.74668]
[1739393818008,2.45067,2678.5,2678.3,0.74668]
[1739393818313,5.07425,2678.8,2678.4,0.74667]
[1739393818314,0.74664,2678.6,2678.4,0.74667]
[1739393818514,0.74665,2678.5,2678.4,0.74667]
[1739393818708,0.74665,2678.5,2678.1,2.41918]
[1739393818709,0.74665,2678.5,2678.1,0.5523]
[1739393818908,0.74671,2678.3,2678.2,0.74672]
[1739393819107,0.74669,2678.4,2678.3,0.7467]
[1739393819309,3.5705,2678.7,2678.1,0.5523]
[1739393819507,0.74672,2678.3,2678.2,0.74672]
[1739393819706,3.5705,2678.7,2678.1,0.5523]
[1739393819906,3.5705,2678.7,2678.2,0.7467]
[1739393820115,0.7467,2678.3,2678.2,0.7467]
[1739393820410,1.86655,2678.6,2677.9,3.00833]
[1739393820411,0.74679,2678.0,2677.9,0.5795]
[1739393820616,0.74681,2677.9,2677.8,0.00559869]
[1739393821713,0.74679,2678.0,2677.9,0.7468]
[1739393821912,0.5653,2678.3,2677.8,6.50437768]
[1739393822112,1.704,2678.5,2678.3,0.7467]
[1739393822113,0.74669,2678.4,2678.3,0.7467]
[1739393822409,1.704,2678.5,2678.1,3.2078]
[1739393822616,0.74669,2678.4,2678.1,3.2078]
[1739393822814,0.7467,2678.3,2678.2,0.7467]
[1739393823015,0.74673,2678.2,2678.1,3.2078]
[1739393823214,0.74678,2678.1,2677.9,2.4988]
[1739393823418,0.74679,2678.0,2677.9,1.1774]
[1739393823615,0.74679,2678.0,2677.9,0.598]
[1739393823813,0.74681,2677.9,2677.8,0.00559869]
[1739393825115,1.704,2678.0,2677.8,0.00559869]
[1739393825619,2.4508,2678.0,2677.9,0.74681]
[1739393826020,2.4508,2678.0,2677.8,0.75241869]
[1739393826517,1.704,2678.0,2677.8,0.75241869]
[1739393826710,0.74681,2677.9,2677.8,0.00559869]
[1739393828023,2.4508,2678.0,2677.8,0.75242869]
[1739393828321,0.74681,2677.9,2677.8,0.75242869]
[1739393828721,1.704,2678.0,2677.8,0.75242869]
[1739393828921,1.704,2678.0,2677.8,0.00559869]
[1739393829118,0.74681,2677.9,2677.8,0.00559869]
[1739393830620,0.80842295,2677.9,2677.8,0.00559869]
[1739393830821,0.74681,2677.9,2677.8,0.00559869]
[1739393831017,0.74677,2678.1,2678.0,0.74676]
[1739393831723,2.8724,2678.2,2677.9,3.2078]
[1739393832023,1.704,2678.2,2678.1,0.74676]
[1739393832322,2.45073,2678.2,2678.1,0.74676]
[1739393833220,0.74671,2678.3,2678.2,0.74673]
[1739393833421,3.87957899,2678.6,2677.9,5.07478]
[1739393833620,1.33524,2678.6,2678.4,0.74666]
[1739393833820,0.74663,2678.6,2678.3,3.2078]
[1739393834020,2.45061,2678.7,2678.5,0.74664]
[1739393834621,2.45057,2678.8,2678.6,3.95439]
[1739393834927,1.704,2678.8,2678.7,0.74659]
[1739393835726,0.75211762,2678.9,2678.6,3.95441]
[1739393835922,0.74657,2678.8,2678.6,3.95441]
[1739393836316,0.00557762,2678.9,2678.6,3.2078]
[1739393836517,0.00557762,2678.9,2678.7,0.74657]
[1739393836823,0.75211762,2678.9,2678.7,0.74657]
[1739393837020,0.00557762,2678.9,2678.7,0.74657]
[1739393837216,0.75212762,2678.9,2678.6,3.9544]
[1739393837416,0.00557762,2678.9,2678.7,0.74656]
[1739393838116,0.00557762,2678.9,2678.7,0.74657]
[1739393838825,0.00557762,2678.9,2678.8,0.74656]
[1739393841226,0.00557762,2678.9,2678.6,3.2078]
[1739393841524,0.00557762,2678.9,2678.8,0.74656]
[1739393844523,3.2078,2679.5,2678.8,0.74656]
[1739393844728,3.2078,2679.5,2678.6,3.2078]
[1739393844729,1.704,2679.4,2679.3,0.74642]
[1739393845122,1.29135,2679.6,2679.5,0.74637]
[1739393845326,1.704,2679.8,2679.7,0.74631]
[1739393845630,0.7462,2680.1,2679.9,0.74624]
[1739393845825,2.45019,2680.2,2679.6,3.2078]
[1739393846025,2.45019,2680.2,2680.0,0.74622]
[1739393846227,2.45019,2680.2,2679.9,0.74624]
[1739393846428,2.45019,2680.2,2679.7,1.1263]
[1739393846627,0.5624,2680.3,2680.2,0.74617]
[1739393846826,1.328,2680.5,2680.3,0.74614]
[1739393847222,3.7702,2680.8,2680.2,3.2078]
[1739393847427,4.51622,2680.8,2680.5,0.74608]
[1739393847633,4.51622,2680.8,2680.2,3.2078]
[1739393847634,6.22022,2680.8,2680.3,0.5557]
[1739393847929,6.22022,2680.8,2680.5,0.74609]
[1739393848124,6.22022,2680.8,2680.4,0.5774]
[1739393848125,4.51622,2680.8,2680.4,0.5774]
[1739393848427,0.74604,2680.7,2680.4,1.3235]
[1739393848625,3.2078,2680.8,2680.4,0.5774]
[1739393848829,0.74604,2680.7,2680.4,0.5774]
[1739393849226,3.2078,2680.8,2680.4,0.5774]
[1739393849632,0.74605,2680.7,2680.4,1.32351]
[1739393849834,0.74607,2680.6,2680.4,0.5774]
[1739393850028,3.2078,2680.8,2680.4,0.5774]
[1739393850229,3.2078,2680.8,2680.2,3.2078]
[1739393850432,3.2078,2680.5,2679.8,1.1621]
[1739393850626,1.703,2680.4,2679.8,1.1621]
[1739393850826,2.44913,2680.4,2680.1,0.74617]
[1739393851130,1.703,2680.4,2680.3,0.74614]
[1739393851324,1.703,2680.4,2680.2,0.74615]
[1739393851534,3.2078,2680.6,2679.8,1.1621]
[1739393851726,0.74613,2680.4,2680.1,0.74618]
[1739393852035,3.2078,2680.6,2680.0,3.95401]
[1739393852232,3.2078,2680.6,2680.0,3.2078]
[1739393852433,0.74616,2680.3,2680.0,3.2078]
[1739393852637,0.74612,2680.4,2680.2,0.74616]
[1739393852929,3.2078,2680.6,2679.8,1.1621]
[1739393853136,0.74616,2680.3,2679.8,1.1621]
[1739393853331,0.7462,2680.1,2679.9,0.74625]
[1739393853526,1.703,2680.8,2680.2,0.74617]
[1739393853725,1.703,2680.8,2680.0,3.2078]
[1739393853726,0.74611,2680.5,2680.0,3.2078]
[1739393853925,0.74611,2680.5,2680.3,0.74614]
[1739393854228,1.703,2680.8,2680.0,3.2078]
[1739393854422,2.44905,2680.7,2680.5,0.74608]
[1739393854630,19.556,2681.1,2680.5,3.2078]
[1739393854830,3.61167,2681.0,2680.8,3.95378]
[1739393855026,0.74598,2680.9,2680.8,3.2078]
[1739393855233,0.5813,2681.0,2680.9,0.74598]
[1739393855432,0.74589,2681.2,2681.0,0.74595]
[1739393855741,1.703,2681.3,2680.8,3.2078]
[1739393856037,1.703,2681.3,2680.8,3.21339869]
[1739393856232,0.74592,2681.1,2680.9,0.74596]
[1739393856636,1.703,2681.3,2681.2,0.74589]
[1739393856938,0.74587,2681.3,2681.1,0.7459]
[1739393857336,0.5556,2681.4,2680.8,3.21339869]
[1739393857537,0.74591,2681.2,2681.0,0.74594]
[1739393857834,0.74593,2681.1,2680.9,0.74598]
[1739393858539,0.74593,2681.1,2680.9,0.74597]
[1739393858732,0.5556,2681.4,2680.8,3.21339869]
[1739393858934,0.5556,2681.4,2680.9,0.74598]
[1739393858935,0.74594,2681.1,2680.9,0.74598]
[1739393859137,0.74594,2681.1,2680.8,3.21339869]
[1739393859337,0.74591,2681.2,2681.0,0.74595]
[1739393859935,0.74587,2681.3,2681.0,0.74592]
[1739393860133,0.5556,2681.4,2680.8,3.21339869]
[1739393860436,1.30146,2681.4,2681.2,0.74589]
[1739393860634,0.74587,2681.3,2681.1,0.7459]
[1739393860940,0.74587,2681.3,2680.8,3.21339869]
[1739393861239,0.5556,2681.4,2680.8,3.21339869]
[1739393861541,0.5556,2681.4,2680.9,1.86495]
[1739393861731,0.5556,2681.4,2681.3,0.74587]
[1739393861938,1.30145,2681.4,2681.0,1.1096]
[1739393862138,0.74589,2681.3,2681.1,0.74591]
[1739393862440,0.74588,2681.3,2681.2,0.74589]
[1739393862642,0.74588,2681.3,2681.1,0.7459]
[1739393862939,0.74589,2681.2,2681.1,0.7459]
[1739393864434,0.5556,2681.4,2681.0,0.5669]
[1739393864732,0.74598,2680.9,2680.8,3.95938869]
[1739393865128,0.74596,2681.0,2680.9,0.74597]
[1739393865541,0.74596,2681.0,2680.8,3.21339869]
[1739393865742,0.74596,2681.0,2680.9,0.74598]
[1739393866147,0.74594,2681.1,2681.0,0.74594]
[1739393866741,0.74596,2681.0,2680.9,0.74597]
[1739393867033,0.5556,2681.4,2680.8,0.00559869]
[1739393867239,0.74592,2681.2,2681.0,0.74593]
[1739393867429,0.74592,2681.1,2680.9,0.74596]
[1739393867633,0.74595,2681.0,2680.9,0.74596]
[1739393868937,5.14898419,2681.3,2680.8,0.75158869]
[1739393869150,0.74598,2680.9,2680.8,0.75158869]
[1739393869944,0.74598,2680.9,2680.8,0.00559869]
[1739393873847,3.2078,2680.9,2680.0,0.5784]
[1739393874048,0.74619,2680.2,2680.1,0.74618]
[1739393874445,0.74616,2680.3,2680.2,0.74615]
[1739393874648,0.74613,2680.4,2680.3,0.74613]
[1739393875348,2.2468,2680.5,2680.2,3.2078]
[1739393875549,0.74612,2680.4,2680.3,0.74613]
[1739393875737,0.74612,2680.4,2680.2,3.95395]
[1739393876149,2.2468,2680.5,2680.2,3.95395]
[1739393876345,0.74614,2680.3,2680.2,3.95395]
[1739393876545,0.74614,2680.3,2680.2,3.2078]
[1739393876747,0.74614,2680.3,2680.2,3.95397]
[1739393877047,0.74614,2680.4,2680.2,3.95397]
[1739393877349,0.74614,2680.3,2680.2,3.2078]
[1739393877851,0.74617,2680.2,2680.1,0.00559869]
[1739393878343,0.74617,2680.2,2680.1,0.75179869]
[1739393878751,0.74617,2680.2,2680.1,0.00559869]
[1739393879252,0.74617,2680.2,2680.1,0.75179869]
[1739393879551,0.74612,2680.4,2680.2,0.74616]
[1739393879750,0.74612,2680.4,2680.2,3.95396]
[1739393880155,0.74611,2680.5,2680.3,0.74613]
[1739393880348,6.49210419,2680.7,2680.2,3.2078]
[1739393880540,0.74617,2680.2,2680.1,0.75179869]
[1739393880851,0.74613,2680.4,2680.3,0.74613]
[1739393881045,0.74611,2680.5,2680.4,0.74611]
[1739393881947,4.18,2681.0,2680.3,5.07316]
[1739393882144,1.1325,2681.3,2680.9,3.95376]
[1739393882351,0.75151869,2681.1,2680.9,3.95376]
[1739393882542,0.75151869,2681.1,2681.0,0.5741]
[1739393883748,0.00559869,2681.1,2680.6,4.3151]
[1739393883952,0.74603,2680.7,2680.6,1.1073]
[1739393884154,0.74603,2680.7,2680.6,0.5506]
[1739393884449,0.00559869,2681.1,2680.6,3.7584]
[1739393884647,0.74603,2680.7,2680.6,3.7584]
[1739393885252,0.00559869,2681.1,2680.6,4.50444]
[1739393886043,0.00559869,2681.1,2680.6,3.7584]
[1739393886253,0.75152869,2681.1,2680.9,3.95376]
[1739393886552,0.75152869,2681.1,2681.0,0.5746]
[1739393889347,0.75152869,2681.1,2680.9,3.2078]
[1739393889348,0.74595,2681.0,2680.9,3.2078]
[1739393889649,0.74603,2680.7,2680.6,1.1035]
[1739393890251,3.95383,2680.7,2680.6,0.5506]
[1739393890452,0.74617,2680.2,2680.1,0.00559869]
[1739393893554,0.80753668,2680.2,2680.1,0.00559869]
[1739393894259,0.80752611,2680.2,2680.1,0.00559869]
[1739393894955,0.74617,2680.2,2680.1,0.00559869]
[1739393895554,0.80753216,2680.2,2680.1,0.00559869]
[1739393895743,0.74617,2680.2,2680.1,0.00559869]
[1739393895947,0.80752493,2680.2,2680.1,0.00559869]
[1739393896456,0.74617,2680.2,2680.1,0.00559869]
[1739393896649,0.80751547,2680.2,2680.1,0.00559869]
[1739393898158,6.06134547,2680.2,2678.7,8.35855419]
[1739393898462,3.28430419,2680.3,2678.7,8.35855419]
[1739393898463,0.74649,2679.1,2679.0,0.74649]
[1739393899260,0.74646,2679.2,2679.1,0.74645]
[1739393900060,0.75201869,2679.3,2679.2,0.74645]
[1739393900652,0.00559869,2679.3,2678.9,1.1519]
[1739393900956,0.74646,2679.2,2679.1,0.74646]
[1739393901152,0.00559869,2679.3,2678.9,1.1519]
[1739393901457,0.74651,2679.0,2678.9,1.89842]
[1739393902049,0.00559869,2679.3,2678.9,1.89842]
[1739393902251,0.74649,2679.1,2679.0,0.7465]
[1739393902958,0.74646,2679.2,2679.0,0.74649]
[1739393903346,0.74646,2679.2,2678.9,1.1519]
[1739393903753,0.00559869,2679.3,2678.9,1.1519]
[1739393904157,0.74648,2679.2,2679.0,0.74651]
[1739393904359,0.74648,2679.1,2679.0,0.74651]
[1739393906455,0.00559869,2679.3,2678.9,4.3597]
[1739393906652,0.74651,2679.0,2678.9,5.10622]
[1739393907062,0.74651,2679.0,2678.9,4.3597]
[1739393908354,0.74651,2679.0,2678.9,1.1519]
[1739393909361,0.74651,2679.0,2678.9,1.89843]
[1739393909758,0.74651,2679.0,2678.9,1.1519]
[1739393912498,0.74653,2678.9,2678.8,0.00559869]
[1739393912686,1.30223,2678.9,2678.8,0.00559869]
[1739393913182,4.51003,2678.9,2678.8,0.00559869]
[1739393915463,5.65633,2678.9,2678.8,0.00559869]
[1739393917463,2.44853,2678.9,2678.8,0.00559869]
[1739393917864,2.44853,2678.9,2678.8,0.75215869]
[1739393918066,0.74653,2679.0,2678.9,0.7465]
[1739393918259,0.7465,2679.1,2679.0,0.74648]
[1739393918565,0.7465,2679.1,2679.0,1.29548]
[1739393919762,0.7465,2679.1,2679.0,0.549]
[1739393921469,0.7465,2679.1,2679.0,1.29551]
[1739393921766,0.7465,2679.1,2679.0,0.549]
[1739393922160,4.9098,2679.2,2678.9,0.5589]
[1739393922366,0.74651,2679.0,2678.9,0.5589]
[1739393922671,0.74653,2678.9,2678.8,0.00559869]
[1739393924474,0.74653,2678.9,2678.8,0.75215869]
[1739393924772,0.74653,2678.9,2678.8,0.00559869]
[1739393925170,0.74652,2679.0,2678.9,0.74651]
[1739393925363,0.7465,2679.1,2679.0,0.74649]
[1739393925569,0.7465,2679.1,2679.0,1.29419]
[1739393926274,0.7465,2679.1,2679.0,0.5477]
[1739393926472,0.7465,2679.1,2679.0,1.29421]
[1739393926869,0.74646,2679.2,2679.1,0.74645]
[1739393928173,0.74648,2679.1,2679.0,1.29419]
[1739393928972,0.00559869,2679.3,2679.0,0.5477]
[1739393929176,0.74646,2679.2,2679.1,0.74646]
[1739393929472,0.74646,2679.2,2679.0,0.5477]
[1739393929473,0.74648,2679.1,2679.0,0.5477]
[1739393929783,0.74647,2679.2,2679.1,0.74647]
[1739393930075,0.00559869,2679.3,2679.2,0.74645]
[1739393930269,0.00559869,2679.3,2679.2,3.95425]
[1739393930474,0.00559869,2679.3,2679.2,4.52026538]
[1739393930672,0.5475,2680.1,2679.2,15.50656957]
[1739393930983,0.74617,2680.3,2680.0,0.74621]
[1739393931171,0.74622,2680.1,2679.9,0.74625]
[1739393933470,0.74622,2680.1,2679.9,1.30985]
[1739393934374,0.74623,2680.0,2679.9,0.5636]
[1739393934979,0.74622,2680.1,2679.9,1.30986]
[1739393936078,0.00559869,2680.3,2679.9,0.5636]
[1739393936383,0.74623,2680.0,2679.9,0.5636]
[1739393936884,0.74623,2680.0,2679.9,1.30986]
[1739393937085,0.00559869,2680.3,2679.9,1.30986]
[1739393937380,0.00559869,2680.3,2679.9,0.5636]
[1739393937585,0.74623,2680.1,2679.9,1.30984]
[1739393938076,0.00559869,2680.3,2679.9,0.5636]
[1739393938297,0.00559869,2680.3,2680.2,0.74617]
[1739393939110,3.28430419,2681.1,2681.0,0.74595]
[1739393939111,1.702,2681.1,2681.0,0.74595]
[1739393939292,0.74588,2681.3,2681.1,0.74592]
[1739393939680,2.2604,2681.4,2681.1,0.74592]
[1739393939880,0.74588,2681.3,2681.1,0.74592]
[1739393940081,0.74588,2681.3,2681.1,0.74591]
[1739393940389,0.74595,2681.0,2680.9,0.00559869]
[1739393940578,0.74595,2681.0,2679.9,3.2078]
[1739393940579,6.0,2681.0,2679.9,3.2078]
[1739393940773,3.2078,2681.0,2680.5,3.2078]
[1739393940985,0.5978,2681.3,2680.8,3.2078]
[1739393941282,0.5584,2681.4,2680.8,3.2078]
[1739393941588,0.74586,2681.4,2681.1,0.74591]
[1739393941786,0.74586,2681.4,2681.2,0.74588]
[1739393942078,0.75145869,2681.4,2681.2,0.74588]
[1739393942286,0.00559869,2681.4,2681.2,0.74588]
[1739393942479,0.00559869,2681.4,2681.3,3.2078]
[1739393942688,3.28430419,2682.6,2681.4,1.86454]
[1739393942887,1.23207397,2682.5,2681.9,0.7457]
[1739393943184,0.74562,2682.2,2681.8,3.95351]
[1739393943780,0.74563,2682.2,2681.8,0.74572]
[1739393943982,3.28430419,2682.3,2681.8,3.2078]
[1739393944184,1.701,2682.4,2681.8,3.2078]
[1739393944391,3.28430419,2682.0,2681.4,3.2078]
[1739393944587,3.28430419,2681.7,2681.5,0.74581]
[1739393944795,6.49210419,2682.3,2681.4,3.2078]
[1739393944986,3.28430419,2682.3,2681.7,3.2078]
[1739393945185,4.02990419,2682.3,2681.8,1.1498]
[1739393945489,1.185,2682.4,2681.8,1.1498]
[1739393945784,6.49210419,2682.3,2681.8,1.1498]
[1739393946188,3.28430419,2682.3,2681.8,1.1498]
[1739393946385,3.28430419,2682.3,2681.5,0.5674]
[1739393946586,3.28430419,2681.7,2681.3,1.183]
[1739393946793,3.5888,2681.6,2681.3,0.74586]
[1739393947382,1.142,2681.6,2681.1,3.2078]
[1739393947684,3.2078,2682.5,2681.5,3.28430419]
[1739393947987,1.8876,2682.3,2681.7,3.2078]
[1739393948180,1.142,2682.3,2681.8,3.2078]
[1739393948382,0.7458,2681.6,2681.3,0.74585]
[1739393948896,5.4938,2681.8,2681.2,1.1853]
[1739393949091,0.74583,2681.5,2681.2,1.93117]
[1739393949297,5.4938,2681.8,2681.2,1.1853]
[1739393949491,0.7458,2681.6,2681.4,0.74584]
[1739393949788,0.5841,2681.7,2681.2,1.1853]
[1739393950196,0.74582,2681.5,2681.3,0.74587]
[1739393950388,0.74587,2681.3,2681.1,0.74591]
[1739393950590,0.74587,2681.3,2680.8,0.00559869]
[1739393950591,6.49210419,2681.3,2680.8,0.00559869]
[1739393950789,0.585,2681.2,2680.8,0.00559869]
[1739393951087,0.74598,2680.9,2680.8,0.00559869]
[1739393951295,4.03028419,2680.9,2680.8,0.00559869]
[1739393951689,0.74598,2680.9,2680.8,0.00559869]
[1739393951989,0.74582,2681.5,2680.8,3.21339869]
[1739393952188,0.74582,2681.5,2681.1,3.2078]
[1739393952589,0.74582,2681.5,2681.3,0.74585]
[1739393952787,4.3221,2681.7,2681.6,0.74578]
[1739393952983,1.1143,2681.7,2681.2,0.5955]
[1739393953184,3.82315135,2682.1,2681.2,0.5955]
[1739393953185,0.74565,2682.1,2681.9,0.74569]
[1739393953385,3.2078,2682.3,2681.8,0.74572]
[1739393953591,6.10325135,2682.4,2681.5,3.2078]
[1739393954094,0.74575,2681.8,2681.6,0.74578]
[1739393954427,0.5592,2681.7,2681.5,3.2078]
[1739393954606,0.5592,2681.7,2681.6,0.74578]
[1739393954841,2.2882,2681.7,2681.0,0.5447]
[1739393955124,0.74587,2681.4,2681.1,0.74591]
[1739393955326,0.74587,2681.4,2680.8,0.00559869]
[1739393955327,0.74598,2680.9,2680.8,0.00559869]
[1739393955509,1.93082,2681.5,2681.3,0.74584]
[1739393955710,0.5551,2681.6,2681.5,0.74581]
[1739393955911,0.5592,2681.7,2681.5,0.74581]
[1739393956104,0.5592,2681.7,2681.4,3.2078]
[1739393956305,0.5592,2681.7,2681.2,1.1802]
[1739393956797,0.5592,2681.7,2681.4,3.2078]
[1739393957201,1.738,2682.1,2681.5,0.5788]
[1739393957407,0.74575,2681.8,2681.5,1.3246]
[1739393957608,3.2078,2682.0,2681.5,0.7458]
[1739393957802,3.2078,2682.0,2681.4,3.2078]
[1739393957803,0.74579,2681.6,2681.4,3.95364]
[1739393957995,0.74579,2681.6,2681.2,1.1802]
[1739393958296,5.56315135,2681.6,2680.8,3.21339869]
[1739393958502,0.74598,2680.9,2680.8,0.00559869]
[1739393958693,2.49098,2680.9,2680.8,0.00559869]
[1739393958890,7.03095135,2681.3,2680.8,0.00559869]
[1739393959102,1.6992,2681.5,2681.2,0.74587]
[1739393959103,0.74584,2681.4,2681.2,0.74587]
[1739393959298,4.9608,2681.3,2680.8,0.00559869]
[1739393959502,0.74598,2680.9,2680.8,0.00559869]
[1739393960094,4.39735135,2681.4,2680.8,3.21339869]
[1739393960305,1.86409,2682.2,2681.1,3.2078]
[1739393960500,0.7458,2681.6,2681.3,0.74585]
[1739393961105,3.2078,2681.7,2681.2,1.33077]
[1739393961404,1.767,2681.7,2681.2,0.74588]
[1739393961702,1.772,2682.0,2681.5,3.2078]
[1739393962005,0.7458,2681.6,2681.3,0.74585]
[1739393962300,3.2078,2681.9,2681.2,1.1095]
[1739393962496,0.74574,2681.8,2681.4,3.2078]
[1739393962697,0.74574,2681.8,2681.5,1.2936]
[1739393963001,3.2078,2681.9,2681.2,0.5559]
[1739393963196,6.19365135,2682.0,2680.8,0.00559869]
[1739393963197,3.2078,2681.5,2680.8,0.00559869]